bitfinex/quotes_BTCUSD_20241002
["timestamp","ask_amount","ask_price","bid_price","bid_amount"]
[1727875805657,0.23097654,61021.0,61020.0,0.173719]
[1727875805879,0.06009854,61021.0,61020.0,0.173719]
[1727875806100,0.24625083,61041.0,61025.0,0.163867]
[1727875806318,0.24625083,61034.0,61025.0,0.376297]
[1727875806545,0.24625083,61034.0,61025.0,0.44945879]
[1727875806754,0.24625083,61041.0,61025.0,0.59087973]
[1727875806959,0.24625083,61034.0,61026.0,0.03283]
[1727875807190,0.24625083,61034.0,61030.0,0.21296508]
[1727875807403,0.24625083,61034.0,61028.0,0.04911308]
[1727875807618,0.163841,61035.0,61028.0,0.1771]
[1727875807828,0.57389883,61041.0,61028.0,0.1771]
[1727875807829,0.163856,61029.0,61028.0,0.1771]
[1727875808043,0.24625083,61041.0,61028.0,0.1771]
[1727875808044,0.327669,61038.0,61028.0,0.1771]
[1727875808272,0.31887836,61051.0,61028.0,0.1771]
[1727875808273,0.02569081,61029.0,61028.0,0.1771]
[1727875808506,0.24625083,61039.0,61030.0,0.0903]
[1727875808715,0.24625083,61039.0,61038.0,0.163832]
[1727875808930,0.24625083,61039.0,61038.0,0.238932]
[1727875809147,0.163814,61045.0,61038.0,0.0751]
[1727875809357,0.163829,61039.0,61038.0,0.0751]
[1727875809637,0.163851,61031.0,61030.0,0.0821]
[1727875809864,0.164845,61034.0,61030.0,0.0821]
[1727875810087,0.001,61034.0,61030.0,0.0821]
[1727875810321,0.263851,61031.0,61030.0,0.0821]
[1727875811402,0.263851,61031.0,61024.0,0.0967]
[1727875811403,0.163867,61025.0,61024.0,0.0967]
[1727875812086,0.163867,61025.0,61024.0,0.09642012]
[1727875812723,0.164867,61025.0,61024.0,0.10042012]
[1727875812947,0.264867,61025.0,61024.0,0.004]
[1727875813172,0.41429398,61025.0,61024.0,0.004]
[1727875813460,0.264867,61025.0,61024.0,0.004]
[1727875813713,0.102,61025.0,61024.0,0.004]
[1727875813933,0.165867,61025.0,61024.0,0.004]
[1727875814150,0.327737,61025.0,61020.0,0.000819]
[1727875814377,0.51012883,61021.0,61020.0,0.000819]
[1727875814601,0.263878,61021.0,61020.0,0.000819]
[1727875814824,0.28957368,61021.0,61020.0,0.000819]
[1727875815262,0.02569568,61021.0,61020.0,0.000819]
[1727875815712,0.18957368,61021.0,61020.0,0.000819]
[1727875816548,0.163878,61021.0,61020.0,0.000819]
[1727875816773,0.167878,61021.0,61020.0,0.000819]
[1727875817434,0.169878,61021.0,61020.0,0.000819]
[1727875817650,0.269878,61021.0,61020.0,0.000819]
[1727875818069,0.28694811,61021.0,61020.0,0.000819]
[1727875819119,0.02307011,61021.0,61020.0,0.000819]
[1727875819491,0.18694811,61021.0,61020.0,0.000819]
[1727875819724,0.18694811,61021.0,61020.0,0.00053912]
[1727875819725,0.21264298,61021.0,61020.0,0.00053912]
[1727875820060,0.2294099,61021.0,61020.0,0.00053912]
[1727875820478,0.21264298,61021.0,61020.0,0.00053912]
[1727875820841,0.04876498,61021.0,61020.0,0.00053912]
[1727875821095,0.04876498,61021.0,61020.0,0.16873912]
[1727875821096,0.04846412,61021.0,61020.0,0.16873912]
[1727875821320,0.22943564,61021.0,61020.0,0.16873912]
[1727875821544,0.32594654,61021.0,61020.0,0.00053912]
[1727875821976,0.21266639,61021.0,61020.0,0.00053912]
[1727875822233,0.32946364,61021.0,61020.0,0.00053912]
[1727875822413,0.32746364,61021.0,61020.0,0.00053912]
[1727875822618,0.32946364,61021.0,61020.0,0.00053912]
[1727875822830,0.32546364,61021.0,61020.0,0.00053912]
[1727875823038,0.29976877,61021.0,61020.0,0.00053912]
[1727875823444,0.29776877,61021.0,61020.0,0.00053912]
[1727875823703,0.30376877,61021.0,61020.0,0.00053912]
[1727875823979,0.03989077,61021.0,61020.0,0.00053912]
[1727875824217,0.03989077,61021.0,61020.0,0.24171912]
[1727875824467,0.0657048,61021.0,61020.0,0.33661912]
[1727875824727,0.03169482,61021.0,61020.0,0.33661912]
[1727875824995,0.001638,61026.0,61025.0,0.163867]
[1727875825251,0.001638,61026.0,61025.0,0.332467]
[1727875825770,0.001638,61026.0,61025.0,0.1686]
[1727875826053,0.01846766,61026.0,61025.0,0.332467]
[1727875826279,0.01846766,61026.0,61025.0,0.336467]
[1727875826280,0.002638,61026.0,61025.0,0.336467]
[1727875826529,0.002638,61026.0,61025.0,0.49734882]
[1727875826766,0.003638,61026.0,61025.0,0.49734882]
[1727875827007,0.004638,61026.0,61025.0,0.50134882]
[1727875827327,0.02180263,61026.0,61025.0,0.1726]
[1727875827555,0.01980263,61026.0,61025.0,0.332467]
[1727875827839,0.01980263,61026.0,61025.0,0.4559421]
[1727875827840,0.002638,61026.0,61025.0,0.4559421]
[1727875828556,0.002638,61026.0,61025.0,0.1686]
[1727875828880,0.263878,61021.0,61020.0,0.00053912]
[1727875829124,0.19790155,61021.0,61020.0,0.00053912]
[1727875829642,0.29790155,61021.0,61020.0,0.00025924]
[1727875829935,0.30673863,61021.0,61020.0,0.00025924]
[1727875830469,0.45302902,61021.0,61020.0,0.00025924]
[1727875830711,0.46102902,61021.0,61020.0,0.00125924]
[1727875830957,0.31673863,61021.0,61020.0,0.00125924]
[1727875831700,0.31873863,61021.0,61020.0,0.00125924]
[1727875831941,0.30673863,61021.0,61020.0,0.00025924]
[1727875832487,0.32773863,61021.0,61020.0,0.00025924]
[1727875832891,0.31773863,61021.0,61020.0,0.00025924]
[1727875833122,0.31973863,61021.0,61020.0,0.00025924]
[1727875833604,0.56698946,61021.0,61020.0,0.00025924]
[1727875833889,0.30673863,61021.0,61020.0,0.00025924]
[1727875834149,0.30973863,61021.0,61020.0,0.00025924]
[1727875834449,0.4439465,61021.0,61020.0,0.00025924]
[1727875835080,0.30973863,61021.0,61020.0,0.00025924]
[1727875835293,0.31073863,61021.0,61020.0,0.00025924]
[1727875835510,0.163883,61019.0,61018.0,0.001636]
[1727875835721,0.28100459,61019.0,61018.0,0.001636]
[1727875835956,0.44568902,61019.0,61018.0,0.001636]
[1727875836160,0.46243699,61019.0,61018.0,0.001636]
[1727875836394,0.34822162,61019.0,61018.0,0.001636]
[1727875836606,0.34822162,61019.0,61010.0,0.001636]
[1727875836607,0.355004,61011.0,61010.0,0.001636]
[1727875836822,0.265926,61003.0,60995.0,0.24625083]
[1727875837038,0.28304759,61003.0,60995.0,0.24625083]
[1727875837264,0.29785781,61003.0,60995.0,0.24625083]
[1727875837516,0.263931,61001.0,60995.0,0.24625083]
[1727875837768,0.29786281,61001.0,60995.0,0.24625083]
[1727875838246,0.28105259,61001.0,60995.0,0.24625083]
[1727875838498,0.28312707,61001.0,60995.0,0.24625083]
[1727875838932,0.28312707,61001.0,60986.0,0.24625083]
[1727875839661,0.265969,60987.0,60986.0,0.24625083]
[1727875839872,0.28316507,60987.0,60986.0,0.24625083]
[1727875840087,0.28316507,60987.0,60970.0,0.24625083]
[1727875840088,0.263988,60980.0,60970.0,0.24625083]
[1727875840548,0.29787252,60980.0,60970.0,0.24625083]
[1727875840981,0.29787252,60980.0,60979.0,0.082336]
[1727875840982,0.03388452,60980.0,60979.0,0.082336]
[1727875841228,0.01719607,60980.0,60979.0,0.082336]
[1727875841443,0.24825083,61003.0,60982.0,0.327962]
[1727875841698,0.24625083,60989.0,60979.0,0.082336]
[1727875841910,0.327907,60993.0,60980.0,0.24625083]
[1727875842165,0.01721899,60995.0,60990.0,0.327922]
[1727875842379,0.24625083,60994.0,60991.0,0.17647876]
[1727875842587,0.24625083,60994.0,60991.0,0.1732]
[1727875843004,0.163955,60992.0,60991.0,0.1732]
[1727875843226,0.03407496,60992.0,60982.0,0.0765]
[1727875843428,0.004,60993.0,60982.0,0.0765]
[1727875843429,0.16398,60983.0,60982.0,0.0765]
[1727875843639,0.18123437,60983.0,60982.0,0.0765]
[1727875845389,0.1,60982.0,60979.0,0.095536]
[1727875845572,0.006,60993.0,60979.0,0.001636]
[1727875845573,0.01725437,60981.0,60979.0,0.001636]
[1727875845793,0.004,60993.0,60981.0,0.0758]
[1727875846003,0.24625083,61010.0,60986.0,0.28850732]
[1727875846221,0.24625083,61010.0,60983.0,0.0758]
[1727875846222,0.163935,61000.0,60993.0,0.16395]
[1727875846437,0.04289886,60999.0,60989.0,0.327923]
[1727875846691,0.04289886,60999.0,60986.0,0.03283]
[1727875846692,0.01719195,60998.0,60986.0,0.03283]
[1727875846901,0.163918,61007.0,60997.0,0.327883]
[1727875847145,0.24625083,61010.0,60993.0,0.24625083]
[1727875847146,0.1,61001.0,60998.0,0.0776]
[1727875847395,0.427825,61009.0,61000.0,0.0953]
[1727875847656,0.0339675,61008.0,61001.0,0.327862]
[1727875847989,0.163916,61007.0,61001.0,0.16393]
[1727875848186,0.24625083,61008.0,61000.0,0.292063]
[1727875848187,0.163919,61006.0,61000.0,0.292063]
[1727875848435,0.18114816,61005.0,61000.0,0.0953]
[1727875848692,0.02570252,61005.0,61000.0,0.0953]
[1727875849289,0.163931,61001.0,61000.0,0.0953]
[1727875849488,0.32787,61000.0,60989.0,0.0944]
[1727875849755,0.163958,60991.0,60990.0,0.0815]
[1727875850222,0.0429267,60991.0,60990.0,0.0815]
[1727875850459,0.02570756,60991.0,60990.0,0.0815]
[1727875850687,0.327923,60990.0,60986.0,0.000819]
[1727875850906,0.263969,60987.0,60986.0,0.000819]
[1727875851114,0.28114285,60987.0,60986.0,0.000819]
[1727875852225,0.28214285,60987.0,60986.0,0.000819]
[1727875852665,0.28214285,60987.0,60979.0,0.001636]
[1727875852666,0.163988,60980.0,60979.0,0.001636]
[1727875852888,0.28116185,60980.0,60979.0,0.001636]
[1727875853357,0.40058496,60980.0,60979.0,0.001636]
[1727875853577,0.30687668,60980.0,60979.0,0.001636]
[1727875855408,0.30787668,60980.0,60979.0,0.001636]
[1727875855844,0.30689158,60980.0,60979.0,0.001636]
[1727875856059,0.31289158,60980.0,60979.0,0.001636]
[1727875856278,0.31290227,60980.0,60979.0,0.001636]
[1727875856497,0.32957831,60980.0,60979.0,0.001636]
[1727875856711,0.30387908,60980.0,60979.0,0.001636]
[1727875856925,0.02319944,60980.0,60979.0,0.001636]
[1727875857135,0.18718744,60980.0,60979.0,0.001636]
[1727875857343,0.18118744,60980.0,60979.0,0.001636]
[1727875857550,0.19799184,60980.0,60979.0,0.001636]
[1727875857761,0.28338312,60980.0,60979.0,0.001636]
[1727875857981,0.20399184,60980.0,60979.0,0.001636]
[1727875858195,0.1807924,60980.0,60979.0,0.001636]
[1727875858409,0.20408336,60980.0,60979.0,0.001636]
[1727875858819,0.29808336,60980.0,60979.0,0.001636]
[1727875859031,0.3994838,60980.0,60979.0,0.001636]
[1727875859247,0.3934838,60980.0,60979.0,0.001636]
[1727875859456,0.39349225,60980.0,60979.0,0.001636]
[1727875859667,0.39549225,60980.0,60979.0,0.001636]
[1727875859873,0.42120967,60980.0,60979.0,0.001636]
[1727875860089,0.164028,60965.0,60964.0,0.24625083]
[1727875860310,0.29813181,60965.0,60964.0,0.24625083]
[1727875860785,0.264031,60964.0,60963.0,0.000818]
[1727875860997,0.29813481,60964.0,60963.0,0.000818]
[1727875861438,0.264031,60964.0,60963.0,0.000818]
[1727875861659,0.28144897,60964.0,60963.0,0.000818]
[1727875862161,0.29820448,60964.0,60963.0,0.000818]
[1727875862370,0.29820448,60964.0,60940.0,0.24625083]
[1727875862371,0.264044,60959.0,60940.0,0.24625083]
[1727875862590,0.40491507,60959.0,60940.0,0.24625083]
[1727875862811,0.28146197,60959.0,60940.0,0.24625083]
[1727875863248,0.28346197,60959.0,60948.0,0.000819]
[1727875863475,0.28346197,60959.0,60949.0,0.24625083]
[1727875863686,0.266052,60956.0,60948.0,0.000819]
[1727875863898,0.266052,60956.0,60939.0,0.000819]
[1727875863899,0.102,60943.0,60939.0,0.000819]
[1727875864123,0.28350797,60942.0,60941.0,0.24645083]
[1727875864342,0.28350797,60942.0,60939.0,0.000819]
[1727875864343,0.266095,60940.0,60939.0,0.000819]
[1727875864587,0.28333357,60940.0,60939.0,0.000819]
[1727875864844,0.29798636,60940.0,60939.0,0.000819]
[1727875865070,0.29816456,60940.0,60939.0,0.000819]
[1727875865298,0.28151177,60940.0,60939.0,0.000819]
[1727875865519,0.41068942,60940.0,60939.0,0.000819]
[1727875865735,0.28151177,60940.0,60939.0,0.000819]
[1727875867711,0.5277626,60940.0,60939.0,0.000819]
[1727875867941,0.5277626,60940.0,60925.0,0.000819]
[1727875867942,0.264133,60926.0,60925.0,0.000819]
[1727875868398,0.28154977,60926.0,60925.0,0.000819]
[1727875869258,0.266144,60922.0,60921.0,0.0002]
[1727875869477,0.28156077,60922.0,60921.0,0.0002]
[1727875870169,0.30730317,60922.0,60921.0,0.0002]
[1727875870588,0.32130317,60922.0,60921.0,0.0002]
[1727875870995,0.04315917,60922.0,60921.0,0.0002]
[1727875871216,0.0387424,60922.0,60921.0,0.0002]
[1727875871419,0.0387424,60922.0,60921.0,0.2049309]
[1727875871626,0.0257424,60922.0,60921.0,0.2377609]
[1727875871832,0.24625083,60934.0,60922.0,0.361115]
[1727875872041,0.24625083,60924.0,60921.0,0.0002]
[1727875872277,0.164137,60925.0,60921.0,0.0002]
[1727875872463,0.24625083,60934.0,60921.0,0.0002]
[1727875872464,0.328256,60928.0,60921.0,0.0002]
[1727875872678,0.328244,60931.0,60921.0,0.0002]
[1727875872900,0.34534169,60930.0,60921.0,0.0002]
[1727875873126,0.32815,60948.0,60926.0,0.164131]
[1727875873344,0.164125,60929.0,60924.0,0.164138]
[1727875873576,0.328238,60932.0,60924.0,0.164138]
[1727875873577,0.164123,60930.0,60924.0,0.164138]
[1727875873834,0.164123,60930.0,60924.0,0.2462294]
[1727875874056,0.01716098,60929.0,60921.0,0.0002]
[1727875874293,0.352,60950.0,60923.0,0.16414]
[1727875874294,0.1,60927.0,60923.0,0.16414]
[1727875874512,0.1,60927.0,60921.0,0.0002]
[1727875874720,0.1,60927.0,60922.0,0.164144]
[1727875874946,0.164144,60922.0,60921.0,0.001019]
[1727875875416,0.264144,60922.0,60921.0,0.001019]
[1727875875632,0.28126546,60922.0,60921.0,0.001019]
[1727875877122,0.30700828,60922.0,60921.0,0.001019]
[1727875877552,0.31500828,60922.0,60921.0,0.001019]
[1727875877759,0.44569101,60922.0,60921.0,0.001019]
[1727875878446,0.30692317,60922.0,60921.0,0.001019]
[1727875878691,0.30892317,60922.0,60921.0,0.001019]
[1727875878922,0.30692317,60922.0,60921.0,0.001019]
[1727875879373,0.20692317,60922.0,60921.0,0.001019]
[1727875879810,0.22092317,60922.0,60921.0,0.001019]
[1727875880032,0.20692317,60922.0,60921.0,0.001019]
[1727875880333,0.04277917,60922.0,60921.0,0.0094128]
[1727875880541,0.328249,60930.0,60921.0,0.001019]
[1727875880542,0.164143,60923.0,60921.0,0.001019]
[1727875880762,0.24625083,60931.0,60921.0,0.001019]
[1727875880971,0.24625083,60930.0,60921.0,0.001019]
[1727875881200,0.24625083,60942.0,60921.0,0.001019]
[1727875881201,0.328215,60936.0,60921.0,0.001019]
[1727875881426,0.24625083,60935.0,60926.0,0.328264]
[1727875881646,0.24625083,60935.0,60925.0,0.44212861]
[1727875881647,0.24625083,60935.0,60933.0,0.164112]
[1727875881880,0.164116,60933.0,60927.0,0.16413]
[1727875882094,0.24625083,60935.0,60922.0,0.03292]
[1727875882095,0.328236,60932.0,60922.0,0.03292]
[1727875882311,0.29850609,60935.0,60919.0,0.0821]
[1727875882534,0.164144,60922.0,60919.0,0.0821]
[1727875882750,0.328271,60926.0,60919.0,0.0821]
[1727875882974,0.35,60951.0,60919.0,0.0821]
[1727875883181,0.0257363,60927.0,60919.0,0.0821]
[1727875883392,0.1,60927.0,60922.0,0.24625083]
[1727875883605,0.1,60929.0,60921.0,0.001019]
[1727875883824,0.02573573,60927.0,60924.0,0.164137]
[1727875884031,0.02573573,60927.0,60923.0,0.164141]
[1727875884250,0.02573573,60927.0,60922.0,0.24625083]
[1727875884472,0.02573573,60927.0,60926.0,0.164133]
[1727875884692,0.02573573,60927.0,60922.0,0.164143]
[1727875884921,0.164136,60925.0,60924.0,0.03292]
[1727875885132,0.164136,60925.0,60921.0,0.001019]
[1727875885133,0.02573573,60927.0,60921.0,0.001019]
[1727875885619,0.009,60922.0,60921.0,0.166165]
[1727875885831,0.02573573,60927.0,60923.0,0.164139]
[1727875886042,0.02573573,60927.0,60924.0,0.013]
[1727875886251,0.001,60925.0,60924.0,0.013]
[1727875886466,0.165136,60925.0,60924.0,0.013]
[1727875886717,0.265136,60925.0,60924.0,0.013]
[1727875887361,0.164144,60922.0,60921.0,0.001019]
[1727875887815,0.164144,60922.0,60921.0,0.007019]
[1727875889348,0.1,60924.0,60921.0,0.007019]
[1727875889570,0.428277,60925.0,60922.0,0.24625083]
[1727875889571,0.1,60925.0,60922.0,0.24625083]
[1727875889787,0.1,60925.0,60921.0,0.007019]
[1727875889788,0.27298656,60927.0,60921.0,0.007019]
[1727875890010,0.164144,60922.0,60921.0,0.007019]
[1727875890432,0.164144,60922.0,60921.0,0.001019]
[1727875891558,0.264144,60922.0,60921.0,0.001019]
[1727875893879,0.51039483,60922.0,60921.0,0.001019]
[1727875894099,0.264144,60922.0,60921.0,0.001019]
[1727875894324,0.35878707,60922.0,60921.0,0.001019]
[1727875894749,0.264144,60922.0,60921.0,0.001019]
[1727875894973,0.265144,60922.0,60921.0,0.005019]
[1727875895666,0.267144,60922.0,60921.0,0.005019]
[1727875895884,0.265144,60922.0,60921.0,0.005019]
[1727875896094,0.42791367,60922.0,60921.0,0.005019]
[1727875896522,0.42691367,60922.0,60921.0,0.001019]
[1727875896762,0.43391367,60922.0,60921.0,0.001019]
[1727875896980,0.43591367,60922.0,60921.0,0.001019]
[1727875897416,1.13391367,60922.0,60921.0,0.001019]
[1727875897625,1.13591367,60922.0,60921.0,0.001019]
[1727875898305,1.13755367,60922.0,60921.0,0.001019]
[1727875898760,0.614152,60919.0,60918.0,1e-06]
[1727875898998,0.63120566,60919.0,60918.0,1e-06]
[1727875899213,0.614152,60919.0,60918.0,1e-06]
[1727875899438,0.63989704,60919.0,60918.0,1e-06]
[1727875899663,0.28989704,60919.0,60918.0,1e-06]
[1727875899875,0.57015618,60919.0,60918.0,1e-06]
[1727875900092,1.27015618,60919.0,60918.0,1e-06]
[1727875900320,0.57015618,60919.0,60918.0,1e-06]
[1727875900543,0.19289704,60919.0,60918.0,1e-06]
[1727875900970,0.47315618,60919.0,60918.0,1e-06]
[1727875901621,0.47015618,60919.0,60918.0,1e-06]
[1727875901834,0.7161236,60919.0,60918.0,1e-06]
[1727875902307,0.57015618,60919.0,60918.0,1e-06]
[1727875902523,0.28989704,60919.0,60918.0,1e-06]
[1727875902752,0.02574504,60919.0,60918.0,1e-06]
[1727875903191,0.02574504,60919.0,60918.0,0.164156]
[1727875903417,0.18989704,60919.0,60918.0,1e-06]
[1727875903632,0.18989704,60919.0,60918.0,0.01122003]
[1727875903851,0.18989704,60919.0,60918.0,1e-06]
[1727875904281,0.18989704,60919.0,60918.0,0.01122003]
[1727875904502,0.18989704,60919.0,60918.0,1e-06]
[1727875904724,0.27470894,60919.0,60918.0,1e-06]
[1727875904957,0.18989704,60919.0,60918.0,1e-06]
[1727875905165,0.28989704,60919.0,60918.0,1e-06]
[1727875905391,0.02574504,60919.0,60918.0,1e-06]
[1727875905623,0.03074504,60919.0,60918.0,0.17636678]
[1727875905904,0.24625083,60935.0,60934.0,0.164111]
[1727875906130,0.24625083,60935.0,60934.0,0.246111]
[1727875906345,0.24625083,60935.0,60934.0,0.14209481]
[1727875906560,0.24625083,60942.0,60934.0,0.0930506]
[1727875906807,0.328105,60957.0,60935.0,0.24625083]
[1727875907035,0.2228,60978.0,60935.0,0.24625083]
[1727875907036,0.00164,60983.0,60950.0,0.1718]
[1727875907265,0.01713265,60982.0,60965.0,0.21303683]
[1727875907491,0.7,60966.0,60962.0,0.07351324]
[1727875907721,0.7,60966.0,60959.0,0.164042]
[1727875907941,0.7,60966.0,60958.0,0.04900883]
[1727875908169,0.06338321,60965.0,60957.0,0.04900883]
[1727875908420,0.06338321,60965.0,60955.0,0.31976407]
[1727875908421,0.05763532,60965.0,60955.0,0.31976407]
[1727875908651,0.328015,60973.0,60956.0,0.164051]
[1727875908652,0.164017,60969.0,60956.0,0.164051]
[1727875908875,0.24625083,60965.0,60953.0,0.04900883]
[1727875909095,0.24625083,60973.0,60957.0,0.24625083]
[1727875909332,0.24625083,60972.0,60959.0,0.333087]
[1727875909545,0.24625083,60972.0,60971.0,0.164012]
[1727875909989,0.24625083,60972.0,60963.0,0.04900883]
[1727875910216,0.164015,60970.0,60961.0,0.04900883]
[1727875910429,0.00164,60983.0,60959.0,0.24625083]
[1727875910430,0.164024,60967.0,60959.0,0.24625083]
[1727875910649,0.328015,60973.0,60959.0,0.24625083]
[1727875910867,0.24625083,60970.0,60959.0,5.24625083]
[1727875911083,0.1,60968.0,60959.0,5.24625083]
[1727875911303,0.00164,60983.0,60959.0,5.24625083]
[1727875911304,0.327995,60977.0,60959.0,5.24625083]
[1727875911526,0.1,60969.0,60959.0,5.24625083]
[1727875911746,0.24625083,60977.0,60959.0,5.24625083]
[1727875911747,0.24625083,60976.0,60966.0,0.164023]
[1727875911960,0.264002,60975.0,60959.0,5.361009]
[1727875912208,0.264002,60975.0,60966.0,0.164024]
[1727875912209,0.1,60975.0,60966.0,0.164024]
[1727875912429,0.1,60975.0,60964.0,0.328062]
[1727875912653,0.1,60975.0,60968.0,0.16402]
[1727875912861,0.001638,60972.0,60965.0,0.328052]
[1727875913083,0.001638,60972.0,60963.0,0.24625083]
[1727875913084,0.001638,60972.0,60971.0,0.164012]
[1727875913298,0.001638,60972.0,60971.0,0.196932]
[1727875913522,0.001638,60972.0,60971.0,0.164012]
[1727875914370,0.001638,60972.0,60971.0,0.196932]
[1727875914586,0.001638,60972.0,60971.0,0.244612]
[1727875914797,0.001638,60980.0,60979.0,0.16399]
[1727875915469,0.00164,60996.0,60979.0,0.16399]
[1727875915470,0.00164,60996.0,60995.0,0.163947]
[1727875915675,0.00164,60996.0,60995.0,0.370967]
[1727875916122,0.00164,60996.0,60995.0,0.3820155]
[1727875916554,0.00164,60996.0,60995.0,0.3840155]
[1727875917225,0.001638,61008.0,61000.0,0.72278279]
[1727875917226,0.54296181,61001.0,61000.0,0.72278279]
[1727875917438,0.54296181,61001.0,61000.0,0.68786279]
[1727875917702,0.54296181,61001.0,61000.0,0.68986279]
[1727875917950,0.54296181,61001.0,61000.0,0.70112796]
[1727875918153,0.54296181,61001.0,61000.0,0.73204796]
[1727875918369,0.54296181,61001.0,61000.0,0.69912796]
[1727875918551,0.54296181,61001.0,61000.0,0.25699917]
[1727875919017,0.54296181,61001.0,61000.0,0.09306517]
[1727875919671,0.54296181,61001.0,61000.0,0.25699917]
[1727875921002,0.54296181,61001.0,61000.0,0.28991917]
[1727875921218,0.54296181,61001.0,61000.0,0.29191917]
[1727875921434,0.001638,61008.0,61000.0,0.29191917]
[1727875921435,0.001638,61008.0,61000.0,0.29267962]
[1727875921653,0.001638,61008.0,61007.0,0.198835]
[1727875921880,0.001638,61008.0,61007.0,0.196835]
[1727875922093,0.001638,61008.0,61007.0,0.20800965]
[1727875922968,0.001638,61008.0,61007.0,0.04409465]
[1727875923235,0.001638,61008.0,61007.0,0.01117465]
[1727875923447,0.001638,61008.0,61007.0,0.20800965]
[1727875923686,0.001638,61008.0,61007.0,0.196835]
[1727875923911,0.001638,61008.0,61007.0,0.65009674]
[1727875924360,0.001638,61008.0,61007.0,0.04405295]
[1727875924578,0.001638,61008.0,61007.0,0.01113295]
[1727875925018,0.16555,61008.0,61007.0,0.01113295]
[1727875925238,0.1,61007.0,61000.0,0.01]
[1727875925455,0.1,61007.0,60994.0,0.24625083]
[1727875925456,0.1,61007.0,61003.0,0.24625083]
[1727875925675,0.1,61007.0,60994.0,0.24625083]
[1727875925909,0.163919,61006.0,60996.0,0.163944]
[1727875926145,0.163919,61006.0,61000.0,0.000819]
[1727875926370,0.001638,61001.0,61000.0,0.000819]
[1727875926581,0.001638,61001.0,61000.0,0.164753]
[1727875926805,0.001638,61001.0,61000.0,0.197673]
[1727875927022,0.001638,61001.0,61000.0,0.199673]
[1727875927242,0.001,61007.0,61006.0,0.196838]
[1727875927464,0.001,61007.0,61006.0,0.63896679]
[1727875927675,0.001638,61008.0,61007.0,0.163915]
[1727875927885,0.001638,61008.0,61002.0,0.327854]
[1727875928093,0.001638,61008.0,61004.0,0.163922]
[1727875928307,0.001638,61008.0,61002.0,0.327854]
[1727875928308,0.001638,61008.0,61002.0,0.163928]
[1727875928551,0.001638,61008.0,61002.0,0.163927]
[1727875928764,0.001638,61008.0,61000.0,0.033739]
[1727875929183,0.001,61006.0,61000.0,0.204672]
[1727875929388,0.001638,61008.0,61000.0,0.197672]
[1727875929628,0.001638,61008.0,61000.0,0.033739]
[1727875929879,0.24625083,61001.0,60984.0,0.32490283]
[1727875930112,0.24625083,61001.0,60930.0,0.24625083]
[1727875930113,0.284041,60960.0,60959.0,1.51161232]
[1727875930322,0.279041,60960.0,60959.0,1.35338525]
[1727875930601,0.279041,60960.0,60959.0,1.19138525]
[1727875930817,0.281041,60960.0,60959.0,1.38617741]
[1727875931041,0.281041,60960.0,60959.0,1.19138525]
[1727875931326,0.015,60960.0,60959.0,1.19138525]
[1727875931530,0.0427231,60960.0,60959.0,1.19138525]
[1727875931745,0.2067641,60960.0,60959.0,1.19138525]
[1727875931969,0.3067641,60960.0,60959.0,1.19138525]
[1727875932182,0.281041,60960.0,60959.0,1.19138525]
[1727875932633,0.295041,60960.0,60959.0,1.19238525]
[1727875932852,0.281041,60960.0,60959.0,1.19138525]
[1727875933288,0.281041,60960.0,60959.0,1.18378135]
[1727875933941,0.3091451,60960.0,60959.0,1.18378135]
[1727875935264,0.33687436,60960.0,60959.0,1.08378135]
[1727875935486,0.33487436,60960.0,60959.0,0.98078135]
[1727875935706,0.34187436,60960.0,60959.0,0.99292862]
[1727875936139,0.33487436,60960.0,60959.0,0.99192862]
[1727875936591,0.33687436,60960.0,60959.0,0.99192862]
[1727875936802,0.33487436,60960.0,60959.0,0.99192862]
[1727875937020,0.34187436,60960.0,60959.0,0.99292862]
[1727875937239,0.31377026,60960.0,60959.0,0.99292862]
[1727875937454,0.31577026,60960.0,60959.0,0.99292862]
[1727875937697,0.36189354,60960.0,60959.0,0.99292862]
[1727875937911,0.31577026,60960.0,60959.0,0.99292862]
[1727875938125,0.48065208,60960.0,60959.0,0.99374762]
[1727875939907,0.31377026,60960.0,60959.0,0.99374762]
[1727875940115,0.21377026,60960.0,60959.0,0.99374762]
[1727875940546,0.21177026,60960.0,60959.0,0.99374762]
[1727875940761,0.21377026,60960.0,60959.0,0.99374762]
[1727875941206,0.20877026,60960.0,60959.0,0.99374762]
[1727875941413,0.21377026,60960.0,60959.0,0.99374762]
[1727875942070,0.04972926,60960.0,60959.0,0.99374762]
[1727875942288,0.21377026,60960.0,60959.0,0.99374762]
[1727875942528,0.06486191,60960.0,60959.0,0.98260035]
[1727875942757,0.06486191,60960.0,60959.0,0.99100185]
[1727875942978,0.06486191,60960.0,60959.0,0.99000185]
[1727875942979,0.24555698,60960.0,60959.0,0.99000185]
[1727875943192,0.22582772,60960.0,60959.0,0.99100185]
[1727875943623,0.21982772,60960.0,60959.0,0.99000185]
[1727875944333,0.31982772,60960.0,60959.0,0.99000185]
[1727875944554,0.29817365,60960.0,60959.0,0.99000185]
[1727875944986,0.29817365,60960.0,60959.0,0.99400185]
[1727875945415,0.32390066,60960.0,60959.0,0.99400185]
[1727875946528,0.29817365,60960.0,60959.0,0.99400185]
[1727875946793,0.41821092,60960.0,60959.0,0.99400185]
[1727875947660,0.29817365,60960.0,60959.0,0.99400185]
[1727875948122,0.19817365,60960.0,60959.0,0.99400185]
[1727875948569,0.03413265,60960.0,60959.0,0.99400185]
[1727875949053,0.03213265,60960.0,60959.0,0.99400185]
[1727875949947,0.02213265,60960.0,60959.0,0.99400185]
[1727875950193,0.01713265,60960.0,60959.0,0.99400185]
[1727875950447,0.02572315,60963.0,60962.0,0.164036]
[1727875950661,0.02572315,60963.0,60960.0,0.164039]
[1727875950662,0.0428558,60963.0,60960.0,0.164039]
[1727875950929,0.005,60967.0,60960.0,0.24606501]
[1727875951161,0.24606501,60970.0,60969.0,0.164017]
[1727875951429,0.25606501,60978.0,60961.0,0.24879044]
[1727875951430,0.005,60975.0,60961.0,0.24879044]
[1727875951669,0.005,60975.0,60969.0,0.00824331]
[1727875951670,0.015,60975.0,60969.0,0.00824331]
[1727875951930,0.005,60975.0,60969.0,0.328032]
[1727875952175,0.005,60975.0,60972.0,0.164009]